bitfinex/quotes_ETHUSD_20250730
["timestamp","ask_amount","ask_price","bid_price","bid_amount"]
[1753907436550,0.042,3777.9,3777.8,0.9592]
[1753907436737,0.9874,3777.9,3777.8,5.2012]
[1753907436939,0.9874,3777.9,3777.4,0.7694]
[1753907437260,0.9874,3777.9,3777.5,4.238]
[1753907437261,0.9454,3777.8,3777.5,4.238]
[1753907437545,0.9454,3777.7,3777.4,0.132]
[1753907437713,0.174,3777.9,3777.6,4.238]
[1753907438341,0.174,3777.9,3777.7,4.236]
[1753907438537,0.4587,3777.8,3777.4,0.132]
[1753907438737,0.4587,3777.8,3777.5,4.235]
[1753907439413,0.4587,3777.8,3777.4,0.132]
[1753907439612,0.4867,3777.7,3777.5,4.235]
[1753907439812,0.9454,3777.6,3777.5,4.235]
[1753907442019,0.9454,3777.6,3777.4,0.132]
[1753907442224,0.174,3777.9,3777.5,4.23]
[1753907442861,0.9454,3777.8,3777.4,0.132]
[1753907443066,0.9454,3777.7,3776.6,0.7694]
[1753907443266,0.132,3777.5,3776.9,0.132]
[1753907443569,0.9454,3777.4,3776.9,0.132]
[1753907443725,0.9454,3777.3,3777.0,4.227]
[1753907443926,0.4587,3777.2,3776.9,0.132]
[1753907444173,0.9454,3777.1,3776.7,0.132]
[1753907444467,1.7735,3777.0,3776.7,4.225]
[1753907444626,1.0774,3776.9,3776.7,4.225]
[1753907444833,0.9454,3776.8,3776.7,4.225]
[1753907445267,0.4587,3776.8,3776.7,4.225]
[1753907445472,0.4587,3777.3,3776.7,4.85644]
[1753907445654,0.4587,3777.8,3776.9,0.7694]
[1753907445858,0.4587,3777.8,3777.4,0.132]
[1753907446163,0.4587,3777.8,3776.9,0.7694]
[1753907446164,0.6187,3777.7,3777.1,0.132]
[1753907446348,0.9454,3777.6,3776.8,4.227]
[1753907446532,0.132,3777.0,3776.8,4.227]
[1753907446738,0.4591,3776.9,3776.8,4.227]
[1753907447535,0.4591,3777.3,3776.8,4.6987]
[1753907447741,0.4591,3777.6,3777.2,0.132]
[1753907447939,0.4591,3777.6,3777.3,4.227]
[1753907448142,0.9535,3777.5,3777.3,4.227]
[1753907448348,0.4591,3777.4,3777.3,4.227]
[1753907448771,0.4591,3777.4,3777.2,0.132]
[1753907448955,0.4591,3777.4,3777.3,4.227]
[1753907449381,0.5911,3777.7,3777.3,4.227]
[1753907449577,0.132,3777.7,3777.2,0.132]
[1753907449877,0.9535,3777.6,3777.3,4.224]
[1753907450171,0.9535,3777.5,3777.3,4.224]
[1753907450378,0.4591,3777.4,3777.3,4.224]
[1753907453982,0.4591,3777.4,3777.3,4.216]
[1753907455715,0.4591,3777.4,3777.3,4.213]
[1753907456514,0.132,3777.7,3777.3,4.213]
[1753907456663,0.5911,3777.7,3777.3,4.213]
[1753907457009,0.9535,3777.6,3777.3,4.213]
[1753907457207,0.132,3777.7,3777.3,4.213]
[1753907457513,0.9535,3777.5,3777.3,4.213]
[1753907460070,0.4591,3777.5,3777.3,4.213]
[1753907460399,0.4591,3777.4,3777.3,4.213]
[1753907461103,0.9535,3777.4,3777.3,4.205]
[1753907461308,1.0855,3777.4,3777.3,4.205]
[1753907461603,1.0855,3777.4,3777.2,4.202]
[1753907461787,3.0,3777.5,3777.2,4.202]
[1753907462101,0.002,3777.7,3776.6,0.001]
[1753907462102,0.8015,3777.2,3776.6,0.001]
[1753907462405,0.132,3776.8,3776.6,4.204]
[1753907462610,0.9535,3776.7,3776.6,4.204]
[1753907463215,0.132,3776.8,3776.6,4.204]
[1753907463412,0.132,3776.8,3776.6,0.001]
[1753907463413,0.4591,3776.7,3776.6,0.001]
[1753907463604,0.4591,3776.7,3776.6,4.202]
[1753907463802,0.4591,3777.1,3776.6,5.094]
[1753907464004,0.132,3777.4,3776.7,7.14042073]
[1753907464192,0.132,3777.6,3777.1,0.132]
[1753907464405,0.5911,3777.6,3777.1,0.6037]
[1753907464595,0.132,3777.6,3777.2,4.2]
[1753907464821,0.132,3777.6,3777.2,4.6717]
[1753907464980,0.132,3777.6,3777.2,4.2]
[1753907465172,0.4591,3777.6,3777.2,4.6717]
[1753907465423,0.4591,3777.5,3777.2,4.2]
[1753907468018,0.4591,3777.4,3777.3,4.194]
[1753907469619,0.762,3777.3,3777.1,4.192]
[1753907469920,1.0855,3777.2,3777.1,4.192]
[1753907470214,1.0855,3777.2,3776.9,4.192]
[1753907470423,0.9535,3777.1,3776.3,0.1338]
[1753907470750,0.132,3776.7,3776.3,0.001]
[1753907470910,0.894,3776.7,3776.3,0.001]
[1753907471113,34.8475,3776.7,3776.3,0.001]
[1753907471846,4.8475,3776.7,3776.3,0.001]
[1753907472145,4.3531,3776.7,3776.3,0.001]
[1753907472449,0.132,3776.7,3776.3,0.551]
[1753907472657,0.132,3776.8,3776.6,0.4727]
[1753907472836,0.132,3777.0,3776.7,1.26977814]
[1753907473024,0.132,3777.0,3776.8,4.6637]
[1753907473233,0.762,3777.8,3776.9,0.54363]
[1753907473419,0.132,3777.3,3776.9,1.01533]
[1753907473619,0.132,3777.3,3777.0,0.4717]
[1753907473944,0.002,3777.7,3777.3,0.55]
[1753907474248,0.002,3777.7,3777.4,5.2781856]
[1753907474448,0.002,3777.7,3777.4,4.6637]
[1753907474753,0.002,3777.7,3777.5,0.4717]
[1753907475243,0.002,3777.7,3777.5,0.4217]
[1753907475432,0.002,3777.7,3777.6,4.192]
[1753907476838,0.002,3777.7,3777.6,4.189]
[1753907477747,0.002,3777.7,3777.6,4.6398]
[1753907478269,0.002,3777.7,3777.6,5.16142739]
[1753907478416,0.002,3777.7,3777.6,5.94699922]
[1753907478750,0.002,3777.7,3777.6,15.49640809]
[1753907481970,0.002,3777.7,3777.6,15.48940809]
[1753907482740,0.002,3777.7,3777.6,15.48740809]
[1753907483250,0.002,3777.7,3777.6,6.46152739]
[1753907485522,0.002,3777.7,3777.6,15.48740809]
[1753907485749,0.002,3778.1,3778.0,6.95600312]
[1753907485953,0.002,3778.3,3778.2,3.955863]
[1753907486157,0.002,3778.3,3778.2,17.0976437]
[1753907486362,0.002,3778.3,3778.2,17.7425437]
[1753907487669,0.4418,3779.5,3778.6,1.3091]
[1753907487823,0.4418,3779.5,3778.8,1.3091]
[1753907488029,0.4418,3779.5,3778.8,5.6151]
[1753907488256,0.4418,3779.5,3778.8,1.4411]
[1753907488452,0.4418,3779.5,3778.8,5.6151]
[1753907489131,0.4418,3779.5,3778.8,6.0659]
[1753907489330,0.4418,3779.5,3778.8,6.72821397]
[1753907489957,0.4818,3778.9,3778.8,1.34431397]
[1753907490259,0.957,3778.9,3778.8,4.854]
[1753907490458,0.4818,3778.9,3778.8,4.854]
[1753907490763,0.957,3778.9,3778.8,0.132]
[1753907491062,0.957,3778.9,3778.8,4.173]
[1753907491467,0.957,3778.9,3778.8,4.171]
[1753907493037,0.957,3778.9,3778.8,4.169]
[1753907494245,0.957,3778.9,3778.3,0.682]
[1753907494446,0.04,3778.9,3778.4,4.169]
[1753907494644,0.917,3778.8,3778.4,4.169]
[1753907494846,0.917,3778.7,3778.4,4.169]
[1753907495081,0.917,3778.6,3778.4,4.169]
[1753907495279,0.917,3778.5,3778.3,0.682]
[1753907495573,0.4752,3778.5,3778.4,4.167]
[1753907496074,0.4752,3778.5,3778.4,4.166]
[1753907496276,0.917,3778.5,3778.4,4.166]
[1753907498042,0.132,3778.6,3778.4,4.166]
[1753907498267,0.172,3778.9,3778.4,5.0334]
[1753907498465,0.4418,3778.8,3778.4,4.5826]
[1753907499248,0.4418,3778.8,3778.4,5.0334]
[1753907499450,0.4418,3778.8,3778.5,0.51654]
[1753907500157,0.04,3778.9,3778.5,0.51654]
[1753907500457,0.04,3778.9,3778.7,0.682]
[1753907500664,0.04,3778.9,3778.8,4.71]
[1753907501854,0.04,3778.9,3778.8,5.1608]
[1753907502055,0.04,3778.9,3778.8,5.819534]
[1753907502585,0.04,3778.9,3778.8,9.597534]
[1753907503089,0.002,3779.3,3778.9,3.55]
[1753907503289,0.132,3780.4,3779.7,0.55]
[1753907503453,0.002,3780.6,3779.8,17.79781316]
[1753907503653,0.002,3780.6,3779.8,17.4517807]
[1753907503850,0.002,3780.6,3779.8,4.328]
[1753907504093,0.002,3780.6,3779.8,11.61089904]
[1753907504296,0.002,3780.6,3779.8,11.64654262]
[1753907504595,0.002,3780.6,3780.5,3.19515275]
[1753907504755,0.04,3780.9,3780.6,6.97301692]
[1753907504955,0.04,3780.9,3780.8,12.93672356]
[1753907505486,0.04,3780.9,3780.8,16.44962356]
[1753907505787,0.04,3780.9,3780.8,14.3212207]
[1753907507589,0.04,3780.9,3780.8,18.4181207]
[1753907509297,0.04,3780.9,3780.8,8.99954]
[1753907509792,0.04,3780.9,3780.8,4.84454]
[1753907509995,0.9887,3780.9,3780.8,5.44954]
[1753907510195,0.9887,3780.9,3780.8,1.29454]
[1753907510500,0.9887,3780.9,3780.8,4.155]
[1753907511083,0.9887,3780.9,3780.8,4.705]
[1753907511498,0.9887,3780.9,3780.8,4.155]
[1753907511810,0.9887,3780.9,3778.9,2.64623505]
[1753907511811,0.9887,3780.9,3779.7,0.8024]
[1753907511962,0.7911,3780.9,3779.9,4.154]
[1753907512304,0.9487,3780.8,3780.1,0.55]
[1753907512604,0.4574,3780.7,3780.3,0.55]
[1753907512767,0.4574,3780.7,3780.5,0.55]
[1753907512967,0.4913,3780.7,3780.6,4.154]
[1753907513572,0.9487,3780.7,3780.6,4.154]
[1753907513975,0.4574,3780.7,3780.6,4.154]
[1753907514173,0.9487,3780.7,3780.6,4.154]
[1753907514593,0.9487,3780.7,3780.5,0.682]
[1753907514882,0.04,3780.9,3780.6,4.154]
[1753907515089,0.04,3780.9,3780.7,4.154]
[1753907515469,0.9487,3780.8,3780.7,4.154]
[1753907517083,0.7511,3780.7,3779.7,0.8024]
[1753907517274,0.7511,3780.7,3780.0,0.132]
[1753907517275,0.132,3780.5,3780.0,0.132]
[1753907517479,0.9487,3780.4,3780.0,0.132]
[1753907517688,0.132,3780.5,3780.0,0.132]
[1753907517689,0.9487,3780.3,3780.0,0.132]
[1753907517893,0.9487,3780.2,3780.1,4.154]
[1753907519884,0.8987,3780.2,3780.1,4.154]
[1753907522699,0.8987,3780.2,3779.7,0.132]
[1753907522901,0.132,3780.3,3780.1,4.154]
[1753907523507,0.9487,3780.2,3780.1,4.154]
[1753907524395,0.132,3780.3,3780.2,0.55]
[1753907524630,0.04,3780.9,3780.2,1.17205362]
[1753907524840,0.4974,3780.9,3780.3,4.154]
[1753907525125,0.4974,3780.9,3780.7,0.132]
[1753907525334,0.4974,3780.9,3780.8,4.154]
[1753907526342,0.9887,3780.9,3780.1,1.1913]
[1753907526494,1.8799,3780.8,3780.3,0.132]
[1753907526693,0.002,3780.6,3780.3,0.132]
[1753907526913,0.9487,3780.5,3780.3,0.132]
[1753907527151,0.002,3780.6,3780.3,0.132]
[1753907527337,0.9487,3780.4,3780.3,0.682]
[1753907527551,0.4574,3780.4,3780.3,0.682]
[1753907528817,0.9487,3780.4,3780.3,7.836]
[1753907529340,0.4574,3780.4,3780.3,7.836]
[1753907530243,0.4574,3780.4,3780.3,4.836]
[1753907530822,0.4574,3780.4,3780.3,0.682]
[1753907531023,0.9487,3780.4,3780.3,4.836]
[1753907532645,0.9487,3780.4,3780.3,0.132]
[1753907532847,0.7992,3780.3,3780.1,0.001]
[1753907533051,1.7479,3780.3,3780.1,0.001]
[1753907533364,0.9487,3780.2,3780.1,0.001]
[1753907534433,1.93589,3780.2,3780.1,0.001]
[1753907534634,1.93589,3780.2,3779.7,0.001]
[1753907534635,30.7992,3780.1,3779.7,0.001]
[1753907534848,0.9312,3779.8,3779.7,0.001]
[1753907535046,30.9312,3779.8,3779.7,0.001]
[1753907535252,34.8799,3779.8,3779.7,0.001]
[1753907535452,7.45016461,3779.8,3779.7,0.001]
[1753907535758,4.8799,3779.8,3779.7,0.001]
[1753907540167,34.8799,3779.8,3779.7,0.001]
[1753907540565,39.0339,3779.8,3779.7,0.001]
[1753907544440,8.9794,3779.8,3779.7,0.001]
[1753907545687,0.132,3779.8,3779.7,0.001]
[1753907545989,0.132,3779.8,3779.7,0.4913]
[1753907546387,0.132,3779.8,3779.7,0.001]
[1753907546886,34.8024,3779.8,3779.7,0.001]
[1753907547078,41.52666461,3779.8,3779.7,0.001]
[1753907554804,11.52666461,3779.8,3779.7,0.001]
[1753907555124,38.9564,3779.8,3779.7,0.001]
[1753907556125,38.0622,3779.8,3779.7,0.001]
[1753907557906,37.286,3779.8,3779.7,0.001]
[1753907559096,7.286,3779.8,3779.7,0.001]
[1753907560504,7.286,3779.8,3779.7,0.4913]
[1753907562226,7.286,3779.8,3779.7,0.001]
[1753907565238,3.132,3779.8,3779.7,0.4913]
[1753907565642,3.132,3779.8,3779.7,1.3131]
[1753907566564,0.132,3779.8,3779.7,1.3131]
[1753907566764,4.153,3780.0,3779.7,1.3131]
[1753907566944,0.132,3779.9,3779.7,1.3131]
[1753907567292,0.132,3779.9,3779.8,0.4561]
[1753907567450,0.132,3779.9,3779.7,0.96552]
[1753907567649,0.132,3779.9,3779.7,1.42162]
[1753907568284,0.132,3779.9,3779.8,0.4561]
[1753907571385,0.132,3779.9,3779.7,0.96552]
[1753907574080,0.132,3779.9,3779.7,1.42162]
[1753907575208,0.132,3779.9,3779.7,0.96552]
[1753907575413,7.287,3780.1,3779.8,0.4561]
[1753907575566,7.287,3780.1,3779.7,0.96552]
[1753907575907,0.002,3780.1,3779.8,0.4561]
[1753907576074,0.002,3780.1,3779.9,0.4561]
[1753907577289,0.002,3780.1,3780.0,0.4561]
[1753907579271,0.002,3780.1,3779.8,0.142262]
[1753907579511,0.002,3780.1,3779.9,0.4561]
[1753907581478,0.002,3780.1,3779.8,0.142262]
[1753907581696,0.002,3780.1,3779.8,0.598362]
[1753907583547,0.002,3780.1,3779.9,0.4561]
[1753907585786,0.002,3780.1,3779.8,0.142262]
[1753907585986,0.002,3780.1,3779.8,0.598362]
[1753907587711,0.002,3780.1,3779.9,0.4561]
[1753907589045,0.002,3780.1,3780.0,0.4561]
[1753907589210,0.002,3780.1,3780.0,1.2512]
[1753907589543,0.002,3780.1,3780.0,1.1381]
[1753907591343,0.9379,3780.1,3779.7,0.8228]
[1753907591543,0.4559,3780.0,3779.7,0.9548]
[1753907591706,0.4559,3780.0,3779.7,1.09599]
[1753907591912,0.9359,3779.9,3779.7,0.001]
[1753907592238,1.0679,3779.9,3779.7,0.001]
[1753907592951,0.4559,3779.8,3779.7,0.001]
[1753907593119,0.9359,3779.8,3779.7,0.001]
[1753907593653,0.4559,3779.8,3779.7,0.001]
[1753907595837,0.9359,3779.8,3779.7,0.001]
[1753907598578,1.7064,3779.8,3779.7,0.001]
[1753907598778,5.77944784,3779.8,3779.7,0.001]
[1753907599553,9.92644784,3779.8,3779.7,0.001]
[1753907603802,39.92644784,3779.8,3779.7,0.001]
[1753907604670,9.92644784,3779.8,3779.7,0.001]
[1753907604887,39.92644784,3779.8,3779.7,0.001]
[1753907606195,40.1745747,3779.8,3779.7,0.001]
[1753907606398,42.82021732,3779.8,3779.7,0.001]
[1753907606560,40.1745747,3779.8,3779.7,0.001]
[1753907607051,40.17445886,3779.8,3779.7,0.001]
[1753907608470,42.82010148,3779.8,3779.7,0.001]
[1753907608666,40.17445886,3779.8,3779.7,0.001]
[1753907609069,5.64571262,3779.7,3779.6,0.001]
[1753907609298,38.89007843,3779.4,3779.3,0.001]
[1753907609502,43.94507843,3779.4,3779.3,0.001]
[1753907609793,14.85527843,3779.4,3779.3,0.001]
[1753907610113,46.59783273,3779.4,3779.3,0.001]
[1753907610799,16.59783273,3779.4,3779.3,0.001]
[1753907610954,49.24375536,3779.4,3779.3,0.001]
[1753907611155,46.59783273,3779.4,3779.3,0.001]
[1753907611390,49.24375536,3779.4,3779.3,0.001]
[1753907611712,49.24375536,3779.4,3778.3,0.001]
[1753907611713,30.0,3778.9,3778.3,0.001]
[1753907612017,9.02207843,3778.4,3778.3,0.001]
[1753907612192,13.94507843,3778.4,3778.3,0.001]
[1753907612559,14.85527843,3778.4,3778.3,0.001]
[1753907613957,16.14874483,3778.4,3778.3,0.001]
[1753907615384,46.14774483,3778.4,3778.3,0.001]
[1753907615700,30.7504,3778.2,3778.1,0.04]
[1753907615861,40.674163,3778.2,3778.1,0.04]
[1753907616067,44.15462761,3778.2,3778.1,0.04]
[1753907616573,36.39730312,3778.0,3777.9,0.001]
[1753907616888,53.65438155,3778.0,3777.9,0.001]
[1753907617088,51.91767843,3778.0,3777.9,0.001]
[1753907617258,19.51523273,3778.0,3777.9,0.001]
[1753907617465,53.66023273,3778.0,3777.9,0.001]
[1753907619205,60.66023273,3778.0,3777.9,0.001]
[1753907619359,56.51523273,3778.0,3777.9,0.001]
[1753907619561,60.66123273,3778.0,3777.9,0.001]
[1753907619760,21.367,3778.0,3777.9,0.001]
[1753907620071,11.277,3778.0,3777.9,0.4931]
[1753907620272,14.277,3778.0,3777.9,0.4931]
[1753907620487,14.277,3778.0,3777.9,0.001]
[1753907621223,14.277,3778.0,3777.9,0.4931]
[1753907622431,14.277,3778.0,3777.9,0.001]
[1753907622584,14.277,3778.0,3777.9,0.4931]
[1753907623218,10.132,3778.0,3777.9,0.4931]
[1753907623424,14.277,3778.0,3777.9,0.4931]
[1753907623630,14.277,3778.0,3777.9,0.001]
[1753907623810,44.7137,3778.0,3777.9,0.001]
[1753907624201,14.7137,3778.0,3777.9,0.001]
[1753907624701,14.277,3778.0,3777.9,0.001]
[1753907624904,14.277,3778.0,3777.9,0.4931]
[1753907625306,7.277,3778.0,3777.9,0.4931]
[1753907626603,3.132,3778.0,3777.9,1.2661]
[1753907626924,7.276,3778.0,3777.9,1.2661]
[1753907628313,7.276,3778.0,3777.9,0.4931]
[1753907628514,45.11787843,3778.0,3777.9,0.001]
[1753907628723,45.61547843,3778.0,3777.9,0.001]
[1753907632326,9.7254,3778.0,3777.9,0.001]
[1753907632526,9.2278,3778.0,3777.9,0.001]
[1753907632840,9.2268,3778.0,3777.9,0.001]
[1753907633145,8.4682,3778.0,3777.9,0.001]
[1753907634635,8.9658,3778.0,3777.9,0.001]
[1753907635941,8.0026,3778.0,3777.9,0.001]
[1753907636144,8.9658,3778.0,3777.9,0.001]
[1753907637269,8.4682,3778.0,3777.9,0.001]
[1753907637480,7.7406,3778.0,3777.9,0.001]
[1753907638949,8.2382,3778.0,3777.9,0.001]
[1753907639511,7.7406,3778.0,3777.9,0.001]
[1753907640454,3.132,3778.0,3777.9,0.001]
[1753907640620,7.273,3778.0,3777.9,0.4704]
[1753907643159,7.273,3778.0,3777.9,0.001]
[1753907643828,7.273,3778.0,3777.9,0.4704]
[1753907644440,7.273,3778.0,3777.9,0.001]
[1753907647071,3.132,3778.0,3777.9,0.001]
[1753907647268,7.272,3778.0,3777.9,0.001]
[1753907647767,7.7376,3778.0,3777.9,0.001]
[1753907647946,8.2352,3778.0,3777.9,0.001]
[1753907648966,38.2352,3778.0,3777.9,0.001]
[1753907650065,8.2352,3778.0,3777.9,0.001]
[1753907650547,38.2352,3778.0,3777.9,0.001]
[1753907655280,38.48360689,3778.0,3777.9,0.001]
[1753907656071,41.8415715,3778.0,3777.9,0.001]
[1753907657078,42.48016972,3778.0,3777.9,0.001]
[1753907657596,52.21707284,3778.0,3777.9,0.001]
[1753907657791,5.64712741,3777.7,3777.1,0.04]
[1753907658007,3.132,3777.2,3777.1,0.04]
[1753907658170,37.269,3777.2,3777.1,0.04]
[1753907658500,38.1729,3777.2,3777.1,0.04]
[1753907659884,8.1729,3777.2,3777.1,0.04]
[1753907660090,38.1729,3777.2,3777.1,0.04]
[1753907660298,40.74316461,3777.2,3777.1,0.04]
[1753907663320,54.53504304,3777.2,3777.1,0.04]
[1753907663486,57.57267557,3777.2,3777.1,0.04]
[1753907663912,57.67883257,3777.2,3777.1,0.04]
[1753907664793,64.67883257,3777.2,3777.1,0.04]
[1753907666334,37.00940391,3777.0,3776.9,0.001]
[1753907666516,42.89969265,3776.7,3776.6,0.001]
[1753907666693,47.55686146,3776.7,3776.6,0.001]
[1753907667216,148.46076146,3776.7,3776.6,0.001]
[1753907667394,34.00982457,3776.4,3776.3,0.001]
[1753907667596,47.55787181,3776.4,3776.3,0.001]
[1753907667831,48.46177181,3776.4,3776.3,0.001]
[1753907668027,18.46177181,3776.4,3776.3,0.001]
[1753907668228,51.13822542,3776.4,3776.3,0.001]
[1753907668592,51.38596167,3776.4,3776.3,0.001]
[1753907669191,51.13822542,3776.4,3776.3,0.001]
[1753907670493,36.45996482,3776.2,3776.1,0.04]
[1753907670720,43.29802943,3776.2,3776.1,0.04]
[1753907670943,2.6485155,3775.7,3775.1,0.03]
[1753907671108,47.16819393,3775.7,3775.1,0.03]
[1753907671437,48.07209393,3775.7,3775.1,0.03]
[1753907671614,50.64235854,3775.7,3775.1,0.03]
[1753907672413,57.73235854,3775.7,3775.1,0.03]
[1753907673336,64.73235854,3775.7,3775.1,0.03]
[1753907674034,62.08384304,3775.7,3775.1,0.03]
[1753907674245,64.73235854,3775.7,3775.1,0.03]
[1753907676104,34.73235854,3775.7,3775.1,0.03]
[1753907676304,64.73235854,3775.7,3775.1,0.03]
[1753907676914,65.20155854,3775.7,3775.1,0.03]
[1753907677305,35.20155854,3775.7,3775.1,0.03]
[1753907677507,65.20155854,3775.7,3775.1,0.03]
[1753907677731,62.55304304,3775.7,3775.1,0.03]
[1753907678061,65.20155854,3775.7,3775.1,0.03]
[1753907678637,4.3667,3775.6,3775.1,0.03]
[1753907678823,39.83957843,3775.2,3775.1,0.03]
[1753907679028,46.62344471,3775.2,3775.1,0.03]
[1753907679225,47.52734471,3775.2,3775.1,0.03]
[1753907679430,47.91751352,3775.2,3775.1,0.03]
[1753907679866,34.77536881,3775.2,3775.1,0.03]
[1753907680053,46.98054304,3775.2,3775.1,0.03]
[1753907680257,50.09760932,3775.2,3775.1,0.03]
[1753907680442,33.0,3774.2,3774.1,0.04]
[1753907680647,37.135,3774.2,3774.1,0.04]
[1753907681061,44.7299321,3774.2,3774.1,0.04]
[1753907681244,3.0,3773.9,3773.2,0.4692]
[1753907681446,30.0,3773.6,3773.2,0.4692]
[1753907681674,33.0,3773.3,3773.2,0.4692]
[1753907681968,7.134,3773.3,3773.2,0.5823]
[1753907682131,3.0,3773.3,3773.2,0.5823]
[1753907682331,37.134,3773.3,3773.2,0.4692]
[1753907682759,7.134,3773.3,3773.2,0.4692]
[1753907683070,7.135,3773.3,3773.2,0.5823]
[1753907683372,7.135,3773.3,3773.2,0.4692]
[1753907683736,33.0,3773.2,3773.1,0.04]
[1753907685251,33.9039,3773.2,3773.1,0.04]
[1753907685774,33.4357,3773.2,3773.1,0.04]
[1753907685976,33.0,3773.2,3773.1,0.04]
[1753907687376,33.0,3773.2,3773.1,0.5374]
[1753907687556,35.57026461,3773.2,3773.1,0.04]
[1753907687964,37.135,3773.2,3773.1,0.5374]
[1753907688180,7.134,3773.2,3773.1,1.3435]
[1753907688384,7.134,3773.2,3773.1,0.04]
[1753907688696,37.134,3773.2,3773.1,0.04]
[1753907689375,38.0646,3773.2,3773.1,0.04]
[1753907689572,40.63486461,3773.2,3773.1,0.04]
[1753907689788,47.72486461,3773.2,3773.1,0.04]
[1753907690155,47.72486461,3773.2,3771.9,0.1131]
[1753907690156,48.11503342,3773.2,3772.0,0.8061]
[1753907690354,30.0,3772.0,3770.9,0.8061]
[1753907690552,0.1328,3771.2,3771.1,0.5374]
[1753907690805,3.1328,3771.2,3771.1,0.6505]
[1753907690958,4.2668,3771.2,3771.1,0.6505]
[1753907691153,4.2668,3771.2,3771.1,1.4566]
[1753907691353,0.1328,3771.2,3771.1,1.60226]
[1753907692149,0.1328,3771.2,3771.1,1.4566]
[1753907692354,0.1328,3771.2,3771.1,1.3435]
[1753907692562,0.1328,3771.2,3771.1,1.4566]
[1753907692800,3.1328,3771.2,3771.1,0.8461]
[1753907693097,41.19353539,3771.2,3771.1,0.04]
[1753907693388,42.04092323,3771.2,3771.1,0.04]
[1753907693689,41.44848784,3771.2,3771.1,0.04]
[1753907693891,40.1328,3771.2,3771.1,0.04]
[1753907694185,40.1328,3771.2,3771.1,1.3613]
[1753907694186,4.2668,3771.2,3771.1,1.3613]
[1753907694359,4.2668,3771.2,3771.1,1.4744]
[1753907694956,0.1328,3771.2,3771.1,1.4744]
[1753907695174,4.135,3771.8,3771.1,2.17184]
[1753907695384,4.135,3771.8,3771.3,0.8239]
[1753907695567,0.1328,3771.4,3771.3,0.8239]
[1753907695894,0.1328,3771.4,3771.3,1.3739]
[1753907696100,0.1328,3771.4,3771.3,2.14318575]
[1753907696485,4.135,3772.1,3771.4,0.55]
[1753907696679,0.1328,3771.6,3771.5,1.9844]
[1753907699287,0.1328,3771.6,3771.5,1.9344]
[1753907699471,0.1328,3771.6,3771.5,2.14381858]
[1753907701104,0.1328,3771.6,3771.5,0.7739]
[1753907701265,0.1328,3771.6,3771.5,1.2713]
[1753907701900,0.1328,3771.6,3771.5,0.7739]
[1753907703134,0.1328,3771.6,3771.3,0.4984]
[1753907703135,0.5951,3771.6,3771.3,0.001]
[1753907703335,0.9306,3771.5,3771.3,0.001]
[1753907703542,4.134,3771.6,3771.3,0.001]
[1753907703543,0.1328,3771.4,3771.3,0.001]
[1753907703836,0.1328,3771.4,3771.3,0.8249]
[1753907704000,0.1328,3771.4,3771.3,0.938]
[1753907704200,0.1328,3771.4,3771.3,1.4354]
[1753907704424,0.1328,3771.4,3771.3,1.58294]
[1753907705624,0.1328,3771.4,3771.3,1.46984]
[1753907706759,0.1328,3771.4,3771.3,2.01984]
[1753907706904,3.0,3772.1,3771.3,2.01984]
[1753907706905,3.0,3772.1,3771.4,0.55]
[1753907707101,0.1328,3771.6,3771.4,0.55]
[1753907707300,0.1328,3771.6,3771.5,1.249384]
[1753907707630,0.1328,3771.6,3771.5,2.047684]
[1753907711843,3.7806,3773.3,3771.6,0.55]
[1753907712003,0.1328,3771.8,3771.6,1.0474]
[1753907712199,0.1328,3771.8,3771.6,0.55]
[1753907712451,0.1328,3771.8,3771.7,0.6524284]
[1753907719335,0.1328,3771.8,3771.7,0.1550284]
[1753907720057,0.5826,3771.8,3771.6,0.55]
[1753907720463,0.1328,3771.8,3771.6,0.55]
[1753907720864,0.1328,3771.8,3771.5,0.735071]
[1753907721063,0.9182,3771.7,3771.5,0.735071]
[1753907721274,0.4684,3771.7,3771.5,0.736071]
[1753907721483,0.4498,3771.6,3771.5,0.736071]
[1753907722173,0.4498,3771.6,3771.5,0.001]
[1753907722174,0.9182,3771.6,3771.5,0.001]
[1753907722393,1.051,3771.6,3771.5,0.001]
[1753907723912,0.5826,3771.6,3771.5,0.001]
[1753907724057,5.82775024,3771.6,3771.5,0.001]
[1753907724256,5.00085024,3771.6,3771.5,0.001]
[1753907724652,0.1328,3771.6,3771.5,0.001]
[1753907724893,0.002,3771.8,3771.5,0.487]
[1753907725094,0.1328,3771.7,3771.5,0.001]
[1753907725402,0.4684,3771.6,3771.5,0.001]
[1753907725569,1.54778024,3771.6,3771.5,0.001]